bitfinex/quotes_SOLUSD_20240712
["timestamp","ask_amount","ask_price","bid_price","bid_amount"]
[1720743426488,20.0,136.36,136.33,10.0]
[1720743426668,49.402,136.39,136.33,10.0]
[1720743426867,27.332,136.39,136.33,10.0]
[1720743427091,7.3315,136.4,136.35,10.0]
[1720743427471,7.3335,136.36,136.34,0.34]
[1720743427772,29.74420685,136.41,136.34,0.34]
[1720743427974,7.332,136.39,136.35,10.0]
[1720743428494,20.0,136.38,136.35,10.0]
[1720743428666,42.07,136.39,136.34,0.34]
[1720743428989,7.3325,136.38,136.34,0.34]
[1720743429187,20.0,136.37,136.35,10.0]
[1720743429495,7.3326,136.38,136.35,10.0]
[1720743429678,20.0,136.37,136.35,10.0]
[1720743429870,27.332,136.39,136.35,10.0]
[1720743430072,20.0,136.39,136.34,0.34]
[1720743430274,7.67420685,136.41,136.34,0.34]
[1720743430275,20.0,136.4,136.34,0.34]
[1720743430691,7.3325,136.38,136.34,0.34]
[1720743430897,20.0,136.37,136.34,0.34]
[1720743431072,20.0,136.37,136.35,10.0]
[1720743431501,7.3319,136.39,136.35,10.0]
[1720743431502,20.0,136.38,136.35,10.0]
[1720743431713,20.0,136.38,136.36,0.34]
[1720743431996,20.0,136.39,136.36,0.34]
[1720743432407,20.0,136.39,136.36,0.17]
[1720743432696,29.74420685,136.41,136.24,15.0]
[1720743432697,7.3335,136.37,136.31,10.0]
[1720743432889,20.0,136.36,136.32,0.34]
[1720743433313,20.0,136.36,136.33,10.0]
[1720743433482,20.0,136.37,136.34,0.34]
[1720743433671,20.0,136.38,136.34,0.34]
[1720743433970,27.3324,136.38,136.34,0.34]
[1720743434168,27.3324,136.38,136.3,10.0]
[1720743434169,7.3352,136.33,136.3,10.0]
[1720743434391,20.0,136.32,136.3,10.0]
[1720743435574,42.07,136.34,136.27,16.456]
[1720743435774,7.3367,136.3,136.27,10.0]
[1720743436195,7.3367,136.3,136.26,10.0]
[1720743436196,7.3373,136.29,136.25,10.0]
[1720743436706,7.3368,136.3,136.25,10.0]
[1720743436876,22.07,136.32,136.25,10.0]
[1720743436877,20.0,136.29,136.27,10.0]
[1720743437290,15.0389,136.35,136.29,10.0]
[1720743437608,24.8621,136.36,136.28,0.34]
[1720743437609,20.0,136.34,136.28,0.34]
[1720743437909,7.3353,136.33,136.29,10.0]
[1720743438079,20.0,136.32,136.31,10.0]
[1720743438280,20.0,136.32,136.31,10.34]
[1720743438472,20.0,136.32,136.29,10.0]
[1720743438709,27.3359,136.32,136.28,0.17]
[1720743439005,27.3359,136.32,136.28,0.34]
[1720743439300,20.0,136.32,136.29,10.0]
[1720743440010,20.0,136.32,136.31,10.0]
[1720743440204,20.0,136.32,136.31,10.34]
[1720743440590,20.0,136.32,136.31,0.34]
[1720743440790,20.0,136.32,136.31,0.17]
[1720743441015,27.3358,136.32,136.27,10.0]
[1720743441317,27.3358,136.32,136.28,0.34]
[1720743441504,20.0,136.32,136.29,10.0]
[1720743441694,40.4057,136.35,136.25,20.0]
[1720743441898,22.07,136.33,136.25,20.0]
[1720743442216,42.07,136.32,136.25,10.0]
[1720743442407,7.3381,136.28,136.25,10.0]
[1720743442712,20.0,136.27,136.23,16.0362]
[1720743442920,20.0,136.27,136.21,10.0]
[1720743443108,7.3392,136.26,136.22,10.0]
[1720743443288,20.0,136.25,136.22,10.0]
[1720743443488,27.3386,136.27,136.22,10.0]
[1720743443694,27.3386,136.27,136.2,26.0025]
[1720743443695,7.3389,136.26,136.2,26.0025]
[1720743443911,20.0,136.27,136.2,10.0]
[1720743443912,20.0,136.25,136.2,10.0]
[1720743444083,7.3401,136.24,136.2,10.0]
[1720743444289,20.0,136.23,136.2,10.0]
[1720743444805,20.0,136.24,136.2,10.0]
[1720743445323,20.0,136.24,136.22,10.0]
[1720743445622,20.0,136.24,136.21,7.6812]
[1720743445623,7.3394,136.25,136.21,0.34]
[1720743445923,20.0,136.24,136.21,0.34]
[1720743446102,20.0,136.24,136.22,10.0]
[1720743446615,7.59028529,136.29,136.24,10.0]
[1720743446616,20.0,136.26,136.24,10.0]
[1720743446787,7.3378,136.28,136.24,10.0]
[1720743446788,29.04,136.25,136.24,10.0]
[1720743446988,29.04,136.25,136.24,10.34]
[1720743448319,49.04,136.25,136.24,0.34]
[1720743448516,49.04,136.25,136.2,20.0]
[1720743448819,29.04,136.23,136.21,0.34]
[1720743449395,29.04,136.23,136.2,20.0]
[1720743449597,20.0,136.25,136.2,20.0]
[1720743449598,29.04,136.21,136.2,10.0]
[1720743449809,29.04,136.21,136.2,17.3421]
[1720743450115,29.04,136.23,136.22,10.0]
[1720743450320,29.04,136.23,136.22,27.341]
[1720743450844,29.04,136.29,136.26,10.0]
[1720743450998,29.04,136.27,136.26,10.0]
[1720743451214,29.04,136.27,136.26,10.34]
[1720743452601,29.04,136.27,136.26,0.17]
[1720743452807,29.04,136.27,136.25,0.17]
[1720743453117,29.04,136.27,136.26,10.0]
[1720743453315,29.04,136.27,136.26,10.34]
[1720743453724,29.04,136.27,136.24,10.0]
[1720743453931,29.04,136.27,136.25,0.34]
[1720743453932,7.3386,136.27,136.25,0.34]
[1720743454114,29.04,136.26,136.25,0.34]
[1720743454620,49.04,136.26,136.24,0.17]
[1720743454832,29.04,136.25,136.2,10.0]
[1720743455013,29.04,136.21,136.2,10.0]
[1720743456425,29.04,136.21,136.17,43.208]
[1720743456721,29.04,136.19,136.17,10.0]
[1720743457102,29.04,136.19,136.15,16.5622]
[1720743457419,29.04,136.19,136.15,23.9066]
[1720743457626,29.04,136.19,136.17,10.0]
[1720743458413,29.04,136.19,136.17,17.3433]
[1720743458618,29.04,136.19,136.15,23.9067]
[1720743459334,29.04,136.19,136.17,10.0]
[1720743460401,29.04,136.19,136.16,0.34]
[1720743460603,29.04,136.17,136.16,0.34]
[1720743461417,29.04,136.2,136.19,10.0]
[1720743461635,29.04,136.2,136.19,10.34]
[1720743462420,29.04,136.2,136.17,20.0]
[1720743462616,29.04,136.2,136.18,0.34]
[1720743462812,29.04,136.2,136.18,0.17]
[1720743464114,29.04,136.2,136.18,0.34]
[1720743466242,29.04,136.2,136.18,0.34]
[1720743466842,22.07,136.18,136.1,17.61698939]
[1720743467143,29.04,136.11,136.08,10.0]
[1720743467337,29.04,136.11,136.07,30.3509]
[1720743467515,29.04,136.08,136.07,16.4443]
[1720743468605,29.04,136.08,136.07,33.7934]
[1720743469332,29.04,136.11,136.09,10.0]
[1720743470037,29.04,136.11,136.1,0.17]
[1720743470627,29.04,136.11,136.09,10.0]
[1720743470935,20.0,136.1,136.08,0.17]
[1720743471121,20.0,136.1,136.08,0.34]
[1720743475123,36.388,136.09,136.08,0.34]
[1720743475453,29.04,136.09,136.07,10.0]
[1720743476018,29.04,136.09,136.06,1.1946782]
[1720743476247,29.04,136.09,136.07,0.34]
[1720743476551,36.3883,136.09,136.07,0.17]
[1720743476933,29.04,136.09,136.07,0.17]
[1720743479434,20.0,136.08,136.07,0.17]
[1720743480959,20.0,136.08,136.06,1.0246782]
[1720743481128,29.04,136.09,136.07,10.0]
[1720743481334,29.04,136.09,136.08,0.34]
[1720743482955,7.3452,136.15,136.1,10.0]
[1720743483160,29.04,136.11,136.08,10.34]
[1720743483369,29.04,136.09,136.08,0.34]
[1720743483542,29.04,136.09,136.08,0.17]
[1720743483857,29.04,136.09,136.08,10.17]
[1720743484056,29.04,136.09,136.08,10.34]
[1720743487068,49.04,136.09,136.08,0.34]
[1720743487266,49.04,136.09,136.08,10.0]
[1720743487474,49.04,136.09,136.08,10.34]
[1720743487646,29.04,136.09,136.08,62.6886]
[1720743488047,29.04,136.11,136.1,10.0]
[1720743488248,29.04,136.11,136.1,10.34]
[1720743488761,29.04,136.13,136.12,10.0]
[1720743488960,29.04,136.13,136.12,10.34]
[1720743489278,29.04,136.13,136.12,0.34]
[1720743489476,29.04,136.13,136.11,0.34]
[1720743489785,29.04,136.12,136.11,0.34]
[1720743490971,56.3864,136.12,136.08,55.0]
[1720743491146,36.3864,136.12,136.08,10.0]
[1720743491549,20.0,136.11,136.08,10.0]
[1720743492044,27.347,136.11,136.08,10.0]
[1720743492473,27.347,136.11,136.09,0.34]
[1720743492654,20.0,136.11,136.09,0.34]
[1720743494160,29.04,136.1,136.09,0.34]
[1720743494358,29.04,136.1,136.06,10.8546782]
[1720743494550,40.4325,136.15,136.09,10.0]
[1720743494751,7.3455,136.14,136.11,10.0]
[1720743495082,29.04,136.12,136.11,10.0]
[1720743495756,29.04,136.12,136.09,10.0]
[1720743495960,29.04,136.1,136.07,10.17]
[1720743496163,29.04,136.1,136.08,0.17]
[1720743496474,29.04,136.1,136.09,0.17]
[1720743496650,29.04,136.1,136.09,10.17]
[1720743497084,29.04,136.1,136.09,10.34]
[1720743497657,29.04,136.1,136.09,20.34]
[1720743498464,23.80955394,136.17,136.13,10.0]
[1720743498659,29.04,136.14,136.13,10.0]
[1720743498978,29.04,136.14,136.13,17.6859]
[1720743499177,29.04,136.14,136.13,20.34]
[1720743499385,29.04,136.16,136.15,10.0]
[1720743499563,36.12858293,136.31,136.15,10.0]
[1720743499564,15.6749,136.26,136.19,10.0]
[1720743499782,29.04,136.24,136.21,17.3414]
[1720743500067,29.04,136.24,136.23,10.0]
[1720743500480,29.04,136.24,136.23,10.34]
[1720743500686,29.04,136.26,136.23,10.34]
[1720743501060,20.0,136.25,136.23,10.34]
[1720743501278,29.04,136.26,136.23,10.34]
[1720743501861,36.3792,136.26,136.21,20.0]
[1720743502071,36.3792,136.26,136.22,0.34]
[1720743502458,20.0,136.25,136.22,0.34]
[1720743502782,20.0,136.25,136.23,10.0]
[1720743502958,20.0,136.25,136.22,0.34]
[1720743503473,20.0,136.25,136.23,10.0]
[1720743503977,29.04,136.27,136.25,10.0]
[1720743504493,29.04,136.27,136.24,0.17]
[1720743504659,29.04,136.27,136.25,10.0]
[1720743505472,29.04,136.27,136.24,10.17]
[1720743505881,29.04,136.27,136.24,0.17]
[1720743506085,29.04,136.27,136.24,0.34]
[1720743506380,20.0,136.26,136.24,0.34]
[1720743506754,29.04,136.25,136.24,0.34]
[1720743507554,29.04,136.25,136.23,10.0]
[1720743509377,29.04,136.25,136.24,0.34]
[1720743509689,29.04,136.25,136.24,0.17]
[1720743509690,49.04,136.25,136.24,0.17]
[1720743510080,49.04,136.25,136.24,0.34]
[1720743511473,49.04,136.25,136.23,10.0]
[1720743512697,29.04,136.25,136.23,10.0]
[1720743512865,29.04,136.27,136.26,10.0]
[1720743513061,15.6749,136.3,136.26,10.17]
[1720743513062,29.04,136.28,136.26,10.17]
[1720743513962,29.04,136.28,136.26,20.17]
[1720743514797,29.04,136.28,136.27,0.34]
[1720743515091,20.0,136.28,136.27,0.34]
[1720743515667,49.04,136.28,136.26,10.0]
[1720743515992,49.04,136.28,136.25,0.34]
[1720743516683,56.3779,136.28,136.25,0.34]
[1720743516864,49.04,136.28,136.25,0.34]
[1720743517059,20.0,136.27,136.25,0.34]
[1720743517265,29.04,136.26,136.22,10.0]
[1720743517478,29.04,136.26,136.22,20.0]
[1720743518083,29.04,136.26,136.24,10.0]
[1720743518469,29.04,136.26,136.25,0.17]
[1720743520082,29.04,136.26,136.25,10.17]
[1720743520286,29.04,136.29,136.26,10.0]
[1720743520476,20.0,136.28,136.27,10.0]
[1720743520681,20.0,136.28,136.26,10.0]
[1720743522186,20.0,136.28,136.25,0.34]
[1720743522505,29.04,136.27,136.25,0.34]
[1720743523488,29.04,136.27,136.25,0.17]
[1720743524394,29.04,136.27,136.22,10.0]
[1720743524598,20.0,136.26,136.22,10.0]
[1720743524794,20.0,136.26,136.24,10.0]
[1720743525298,20.0,136.27,136.24,10.0]
[1720743525500,36.3792,136.26,136.22,10.0]
[1720743525786,20.0,136.25,136.22,10.0]
[1720743526289,20.0,136.25,136.24,10.0]
[1720743526688,29.04,136.26,136.24,20.0]
[1720743526879,29.04,136.26,136.25,0.17]
[1720743528281,29.04,136.26,136.25,0.34]
[1720743528671,29.04,136.29,136.26,20.0]
[1720743528897,20.0,136.28,136.26,20.0]
[1720743531198,29.04,136.31,136.28,10.0]
[1720743531365,20.0,136.3,136.28,20.0]
[1720743532195,20.0,136.3,136.29,0.17]
[1720743532367,20.0,136.3,136.29,0.34]
[1720743534292,20.0,136.3,136.28,20.0]
[1720743534603,20.0,136.3,136.29,10.34]
[1720743534774,20.0,136.3,136.29,0.34]
[1720743535098,20.0,136.3,136.29,10.34]
[1720743535994,20.0,136.3,136.29,0.34]
[1720743536502,20.0,136.3,136.29,10.34]
[1720743536885,29.04,136.31,136.29,10.34]
[1720743538067,29.04,136.31,136.3,10.0]
[1720743538272,49.04,136.31,136.3,10.34]
[1720743538568,31.99708277,136.34,136.31,10.0]
[1720743538887,20.0,136.33,136.32,10.0]
[1720743539069,20.0,136.33,136.32,10.17]
[1720743539982,20.0,136.33,136.32,10.34]
[1720743540693,29.04,136.34,136.32,10.34]
[1720743540925,29.04,136.34,136.32,20.34]
[1720743540926,20.0,136.33,136.32,20.34]
[1720743541896,29.04,136.34,136.32,20.34]
[1720743542096,29.04,136.34,136.24,21.2503]
[1720743542097,29.04,136.34,136.29,10.0]
[1720743542395,42.07,136.33,136.28,10.0]
[1720743542577,7.3365,136.31,136.27,10.0]
[1720743542780,29.04,136.31,136.29,10.0]
[1720743543498,29.04,136.31,136.28,10.0]
[1720743543795,29.04,136.31,136.29,10.0]
[1720743543981,29.04,136.31,136.3,0.34]
[1720743544183,49.04,136.31,136.3,0.34]
[1720743546377,29.04,136.34,136.31,10.0]
[1720743546703,29.04,136.34,136.33,10.0]
[1720743546876,29.04,136.37,136.36,10.0]
[1720743547073,32.0265757,136.4,136.37,10.0]
[1720743547270,29.04,136.4,136.38,0.17]
[1720743547502,36.3715,136.4,136.37,10.0]
[1720743547804,29.04,136.4,136.37,10.17]
[1720743547979,29.04,136.4,136.37,0.17]
[1720743547980,36.3713,136.4,136.37,0.17]
[1720743548179,29.04,136.4,136.36,0.17]
[1720743548506,29.04,136.38,136.34,10.0]
[1720743549203,29.04,136.38,136.33,10.34]
[1720743549395,29.04,136.35,136.33,0.17]
[1720743549593,29.04,136.35,136.32,10.0]
[1720743550086,20.0,136.34,136.32,10.0]
[1720743550403,20.0,136.34,136.31,10.0]
[1720743550781,27.3346,136.34,136.31,10.0]
[1720743551096,27.3346,136.34,136.3,10.0]
[1720743551295,20.0,136.34,136.31,10.0]
[1720743552003,29.04,136.32,136.3,10.0]
[1720743552223,20.0,136.31,136.3,10.0]
[1720743553101,29.04,136.32,136.3,10.0]
[1720743554522,20.0,136.31,136.25,35.0951]
[1720743554701,7.3367,136.3,136.25,35.0951]
[1720743554894,20.0,136.31,136.25,35.0951]
[1720743554895,27.3364,136.31,136.25,35.0951]
[1720743555116,29.04,136.29,136.25,20.0]
[1720743555325,29.04,136.27,136.25,20.0]
[1720743556208,29.04,136.3,136.28,10.0]
[1720743556414,29.04,136.3,136.27,10.0]
[1720743557328,29.04,136.3,136.29,10.0]
[1720743557499,29.04,136.3,136.29,10.34]
[1720743557693,29.04,136.3,136.28,10.0]
[1720743557901,36.3768,136.3,136.28,10.0]
[1720743558101,29.04,136.3,136.28,10.0]
[1720743558324,36.3769,136.3,136.28,10.0]
[1720743558623,29.04,136.3,136.27,0.17]
[1720743558828,20.0,136.29,136.24,10.0]
[1720743559000,20.0,136.29,136.25,0.17]
[1720743559704,29.04,136.27,136.25,0.17]
[1720743559918,29.04,136.27,136.25,10.34]
[1720743560135,29.04,136.27,136.24,10.0]
[1720743560421,29.04,136.27,136.23,10.0]
[1720743560422,20.0,136.26,136.23,10.0]
[1720743560626,20.0,136.26,136.25,10.0]
[1720743560831,20.0,136.26,136.23,20.0]
[1720743561001,27.338,136.28,136.23,10.0]
[1720743561401,29.04,136.25,136.23,10.0]
[1720743562103,20.0,136.28,136.23,10.0]
[1720743562104,7.339,136.26,136.23,10.0]
[1720743562304,29.04,136.26,136.25,10.0]
[1720743562525,20.0,136.26,136.25,10.0]
[1720743562716,20.0,136.26,136.23,10.0]
[1720743563226,20.0,136.27,136.23,10.0]
[1720743563451,29.04,136.26,136.24,0.34]
[1720743564006,29.04,136.26,136.25,10.0]
[1720743564327,29.04,136.29,136.26,10.0]
[1720743564536,20.0,136.28,136.26,10.0]
[1720743565617,27.3379,136.28,136.26,10.0]
[1720743566121,20.0,136.28,136.26,10.0]
[1720743566731,20.0,136.28,136.24,10.0]
[1720743566934,29.04,136.27,136.23,10.17]
[1720743567114,29.04,136.27,136.24,0.34]
[1720743567324,20.0,136.26,136.23,10.0]
[1720743567516,20.0,136.26,136.25,10.0]
[1720743567717,20.0,136.26,136.25,10.34]
[1720743568642,20.0,136.26,136.23,10.0]
[1720743568817,20.0,136.26,136.24,0.34]
[1720743569536,20.0,136.26,136.25,10.0]
[1720743569835,20.0,136.26,136.25,10.17]
[1720743570042,20.0,136.26,136.25,10.34]
[1720743570739,29.04,136.27,136.25,10.34]
[1720743570915,29.04,136.27,136.26,0.34]
[1720743571114,49.04,136.27,136.25,10.0]
[1720743571316,29.04,136.27,136.24,10.0]
[1720743571533,29.04,136.27,136.25,0.34]
[1720743572942,29.04,136.27,136.25,10.34]
[1720743574947,29.04,136.27,136.26,10.0]
[1720743575140,29.04,136.27,136.26,10.17]
[1720743575445,36.3768,136.3,136.27,10.0]
[1720743575642,20.0,136.29,136.27,10.0]
[1720743578140,27.3377,136.29,136.26,0.34]
[1720743578324,27.3377,136.29,136.27,0.17]
[1720743579045,27.3377,136.29,136.26,0.34]
[1720743580040,27.3377,136.29,136.26,10.34]
[1720743580350,20.0,136.29,136.27,10.0]
[1720743581550,27.3373,136.29,136.27,10.0]
[1720743581721,20.0,136.29,136.27,10.0]
[1720743581922,27.3373,136.29,136.26,10.34]
[1720743582228,27.3373,136.29,136.27,0.17]
[1720743582846,20.0,136.29,136.27,10.17]
[1720743583534,20.0,136.29,136.28,0.17]
[1720743583845,40.19389212,136.33,136.3,10.0]
[1720743583846,29.04,136.33,136.3,10.0]
[1720743584044,29.04,136.33,136.31,10.17]
[1720743584917,29.04,136.33,136.32,0.17]
[1720743585122,29.04,136.33,136.31,10.17]
[1720743585546,2.98276639,136.35,136.33,10.0]
[1720743585742,29.04,136.36,136.33,20.0]
[1720743586069,29.04,136.36,136.35,10.0]
[1720743587249,29.04,136.38,136.35,20.0]
[1720743587449,20.0,136.37,136.35,20.0]
[1720743587632,29.04,136.38,136.37,20.0]
[1720743587838,29.04,136.4,136.37,20.17]
[1720743588040,29.04,136.4,136.37,20.0]
[1720743588929,36.3714,136.4,136.37,20.0]
[1720743589637,20.0,136.39,136.37,20.0]
[1720743589841,36.3714,136.4,136.37,20.0]
[1720743589842,54.07365613,136.43,136.39,10.0]
[1720743590044,7.3303,136.42,136.39,10.0]
[1720743590962,7.331,136.41,136.37,20.0]
[1720743591147,29.04,136.4,136.38,0.17]
[1720743591444,49.04,136.39,136.36,0.34]
[1720743591835,49.04,136.39,136.35,10.0]
[1720743592037,29.04,136.37,136.35,10.0]
[1720743592360,29.04,136.37,136.34,10.17]
[1720743592555,36.3731,136.37,136.34,10.0]
[1720743593155,29.04,136.37,136.34,10.0]
[1720743594354,29.04,136.35,136.34,10.0]
[1720743594661,49.04,136.35,136.34,10.0]
[1720743595050,49.04,136.35,136.31,10.0]
[1720743595245,49.04,136.35,136.33,10.0]
[1720743596959,49.04,136.35,136.33,20.0]
[1720743597363,49.04,136.35,136.33,10.0]
[1720743598235,49.04,136.35,136.29,10.0]
[1720743598236,71.11,136.35,136.29,10.0]
[1720743598437,29.04,136.3,136.26,35.6293]
[1720743598659,29.04,136.3,136.26,20.0]
[1720743599259,29.04,136.3,136.26,27.3387]
[1720743599642,29.04,136.3,136.26,10.0]
[1720743599838,20.0,136.29,136.26,10.0]
[1720743601957,27.3373,136.29,136.26,10.0]
[1720743602264,20.0,136.29,136.26,10.0]
[1720743603059,20.0,136.29,136.28,10.0]
[1720743603250,29.04,136.3,136.29,10.0]
[1720743603449,29.04,136.32,136.3,10.0]
[1720743603645,29.04,136.32,136.29,10.34]
[1720743603977,29.04,136.32,136.29,0.17]
[1720743604344,29.04,136.32,136.28,10.0]
[1720743604540,20.0,136.31,136.28,10.0]
[1720743605239,29.04,136.3,136.27,10.34]
[1720743605465,20.0,136.29,136.27,10.34]
[1720743606044,20.0,136.29,136.27,0.34]
[1720743606269,20.0,136.29,136.27,0.17]
[1720743606444,29.04,136.28,136.26,10.0]
[1720743609754,29.04,136.28,136.26,20.0]
[1720743610073,29.04,136.31,136.28,10.0]
[1720743610370,20.0,136.3,136.28,10.0]
[1720743610555,20.0,136.3,136.29,0.34]
[1720743611649,20.0,136.3,136.28,10.0]
[1720743612273,29.04,136.31,136.28,20.0]
[1720743612459,29.04,136.31,136.3,20.0]
[1720743612777,44.606,136.36,136.32,20.0]
[1720743612778,29.04,136.33,136.32,20.0]
[1720743612952,29.04,136.35,136.32,20.17]
[1720743613153,29.04,136.35,136.34,20.0]
[1720743613371,29.04,136.37,136.34,20.34]
[1720743613666,29.04,136.37,136.35,0.34]
[1720743614371,29.04,136.37,136.35,0.17]
[1720743614553,29.04,136.37,136.34,10.0]
[1720743615367,29.04,136.37,136.33,10.34]
[1720743615570,29.04,136.35,136.33,10.34]
[1720743615872,29.04,136.35,136.33,0.34]
[1720743616570,29.04,136.35,136.33,10.34]
[1720743616766,29.04,136.37,136.34,0.17]
[1720743616980,29.04,136.37,136.33,10.34]
[1720743617283,29.04,136.37,136.34,10.34]
[1720743618386,29.04,136.37,136.34,17.6745]
[1720743618981,29.04,136.37,136.34,10.34]
[1720743619278,29.04,136.37,136.33,10.0]
[1720743619755,15.6462,136.4,136.35,10.0]
[1720743619955,15.6462,136.4,136.36,0.34]
[1720743620181,29.04,136.39,136.36,0.34]
[1720743621862,29.04,136.39,136.37,20.0]
[1720743622059,29.04,136.39,136.37,27.3329]
[1720743622472,29.04,136.39,136.37,20.0]
[1720743622883,29.04,136.41,136.39,20.0]
[1720743623183,16.2667,136.45,136.41,20.0]
[1720743623363,29.04,136.43,136.41,20.0]
[1720743623562,29.04,136.43,136.4,0.34]
[1720743623965,29.04,136.43,136.41,10.0]
[1720743624367,29.04,136.43,136.42,0.34]
[1720743624586,49.04,136.43,136.41,10.0]
[1720743624761,49.04,136.43,136.4,0.34]
[1720743625387,29.04,136.41,136.37,27.3327]
[1720743625556,29.04,136.41,136.39,10.0]
[1720743627467,20.0,136.4,136.35,20.0]
[1720743627690,29.04,136.39,136.37,10.0]
[1720743628065,29.04,136.39,136.37,17.3326]
[1720743628683,29.04,136.43,136.4,10.0]
[1720743628890,20.0,136.42,136.4,10.0]
[1720743629099,29.04,136.43,136.4,10.0]
[1720743629281,29.04,136.43,136.39,27.3317]
[1720743629475,29.04,136.43,136.4,0.34]
[1720743629687,29.04,136.43,136.42,10.0]
[1720743629986,29.04,136.43,136.42,0.34]
[1720743630369,29.04,136.43,136.42,10.34]
[1720743630570,49.04,136.43,136.42,0.34]
[1720743631175,49.04,136.43,136.42,0.17]
[1720743631695,49.04,136.43,136.42,10.17]
[1720743631893,49.04,136.43,136.42,10.34]
[1720743632080,49.04,136.43,136.42,20.34]
[1720743632890,49.04,136.43,136.42,10.34]
[1720743633386,29.04,136.43,136.42,20.34]
[1720743633599,29.04,136.46,136.44,10.0]
[1720743633893,29.04,136.46,136.44,20.0]
[1720743634597,29.04,136.46,136.44,10.0]
[1720743635489,29.04,136.48,136.46,10.0]
[1720743635696,49.04,136.48,136.46,10.0]
[1720743636191,20.0,136.48,136.46,10.0]
[1720743636493,49.04,136.48,136.46,10.0]
[1720743638684,56.3671,136.48,136.45,0.34]
[1720743639583,56.3671,136.48,136.46,10.0]
[1720743639786,49.04,136.48,136.46,10.0]
[1720743640391,56.3675,136.48,136.44,20.0]
[1720743640975,49.04,136.48,136.46,10.0]
[1720743642507,49.04,136.48,136.46,20.0]
[1720743644775,49.04,136.48,136.47,0.34]
[1720743646306,29.04,136.48,136.47,0.34]
[1720743646603,29.04,136.52,136.51,10.0]
[1720743647181,29.04,136.52,136.49,10.0]
[1720743647382,36.3653,136.52,136.49,10.0]